fUSD/lending_fUSD_20240803
["ID","MTS","AMOUNT","RATE_DAILY","PERIOD"]
[333961351,1722649858938,-500.0,0.00016712,2]
[333961352,1722649858947,-502.81,0.00016712,2]
[333961353,1722649858957,-500.0,0.00016712,2]
[333961354,1722649858967,-1886.92,0.00016712,2]
[333961355,1722649858976,-1131.33,0.00016712,2]
[333961356,1722649858985,-3876.52,0.00016712,2]
[333961357,1722649858994,-500.0,0.00016712,2]
[333961358,1722649859004,-1118.15,0.00016712,2]
[333961359,1722649859013,-1761.5,0.00016712,2]
[333961360,1722649859022,-531.68,0.00016712,2]
[333961361,1722649859031,-11118.7,0.00016712,2]
[333961362,1722649859041,-500.0,0.00016712,2]
[333961363,1722649859051,-3921.71,0.00016712,2]
[333961364,1722649859062,-2241.61,0.00016712,2]
[333961365,1722649859071,-614.89,0.00016712,2]
[333961366,1722649859080,-500.0,0.00016712,2]
[333961367,1722649859090,-1064.95,0.00016712,2]
[333961368,1722649859099,-524.7,0.00016712,2]
[333961369,1722649859110,-5408.66,0.00016712,2]
[333961370,1722649859119,-540.43,0.00016712,2]
[333961371,1722649859130,-500.0,0.00016712,2]
[333961372,1722649859139,-2659.06,0.00016712,2]
[333961373,1722649859148,-500.0,0.00016712,2]
[333961374,1722649859157,-1635.52,0.00016712,2]
[333961375,1722649859167,-521.67,0.00016712,2]
[333961376,1722649859176,-1041.83,0.00016712,2]
[333961377,1722649859186,-1865.74,0.00016712,2]
[333961378,1722649859196,-882.92,0.00016712,2]
[333961379,1722649859205,-572.89,0.00016712,2]
[333961380,1722649859215,-500.0,0.00016712,2]
[333961381,1722649859224,-2815.68,0.00016712,2]
[333961382,1722649859234,-500.0,0.00016712,2]
[333961383,1722649859243,-631.55861981,0.00016712,2]
[333961384,1722649859252,-178.0,0.00016757,2]
[333961385,1722649859262,-8645.5612155,0.00016786,2]
[333961386,1722649859271,-154.59494864,0.00016791,2]
[333961387,1722649859279,-1900.0,0.000168,6]
[333961388,1722649859289,-4777.22467371,0.00016812,2]
[333961389,1722649859298,-150.0,0.00016816,2]
[333961390,1722649859307,-300.0,0.00016816,2]
[333961391,1722649859316,-2000.0,0.00016879,2]
[333961392,1722649859325,-200.0,0.00016879,2]
[333961393,1722649859334,-422.02227751,0.00016886,2]
[333961394,1722649859343,-300.0,0.000169,6]
[333961395,1722649859352,-150.11721836,0.00016903,2]
[333961396,1722649859363,-841.89,0.00016914,2]
[333961397,1722649859377,-500.0,0.00016986,2]
[333961398,1722649859386,-500.0,0.00016986,2]
[333961399,1722649859395,-610.06,0.00016986,2]
[333961400,1722649859404,-500.0,0.00016986,2]
[333961401,1722649859415,-500.0,0.00016986,2]
[333961402,1722649859424,-500.0,0.00016986,2]
[333961403,1722649859433,-500.0,0.00016986,2]
[333961404,1722649859443,-500.0,0.00016986,2]
[333961405,1722649859453,-1261.99,0.00016986,2]
[333961406,1722649859464,-500.0,0.00016986,2]
[333961407,1722649859474,-151.0,0.00016986,2]
[333961408,1722649859483,-901.67,0.00016986,2]
[333961409,1722649859493,-500.0,0.00016986,2]
[333961410,1722649859502,-500.0,0.00016986,2]
[333961411,1722649859511,-500.0,0.00016986,2]
[333961412,1722649859520,-500.0,0.00016986,2]
[333961413,1722649859530,-744.47,0.00016986,2]
[333961414,1722649859539,-742.73,0.00016986,2]
[333961415,1722649859548,-833.64,0.00016986,2]
[333961416,1722649859557,-680.02,0.00016986,2]
[333961417,1722649859567,-173.784344,0.00016986,2]
[333961418,1722649859576,-500.0,0.00016986,2]
[333961419,1722649859585,-500.0,0.00016986,2]
[333961420,1722649859594,-511.63,0.00016986,2]
[333961421,1722649859603,-500.0,0.00016986,2]
[333961422,1722649859615,-639.16,0.00016986,2]
[333961423,1722649859624,-500.0,0.00016986,2]
[333961424,1722649859633,-500.0,0.00016986,2]
[333961425,1722649859642,-500.0,0.00016986,2]
[333961426,1722649859651,-500.0,0.00016986,2]
[333961427,1722649859661,-500.0,0.00016986,2]
[333961428,1722649859670,-500.0,0.00016986,2]
[333961429,1722649859679,-500.0,0.00016986,2]
[333961430,1722649859689,-500.0,0.00016986,2]
[333961431,1722649859698,-500.0,0.00016986,2]
[333961432,1722649859707,-781.45,0.00016986,2]
[333961433,1722649859716,-500.0,0.00016986,2]
[333961434,1722649859725,-500.0,0.00016986,2]
[333961435,1722649859734,-754.73,0.00016986,2]
[333961436,1722649859743,-500.0,0.00016986,2]
[333961437,1722649859752,-500.0,0.00016986,2]
[333961438,1722649859761,-500.0,0.00016986,2]
[333961439,1722649859771,-1260.28,0.00016986,2]
[333961440,1722649859780,-500.0,0.00016986,2]
[333961441,1722649859789,-500.0,0.00016986,2]
[333961442,1722649859798,-500.0,0.00016986,2]
[333961443,1722649859807,-526.81,0.00016986,2]
[333961444,1722649859817,-508.2563854,0.00016986,2]
[333961445,1722649859826,-923.16,0.00016986,2]
[333961446,1722649859835,-522.19,0.00016986,2]
[333961447,1722649859845,-500.0,0.00016986,2]
[333961448,1722649859854,-500.0,0.00016986,2]
[333961449,1722649859865,-546.65,0.00016986,2]
[333961450,1722649859875,-500.0,0.00016986,2]
[333961451,1722649859884,-743.82,0.00016986,2]
[333961452,1722649859893,-151.0,0.00016986,2]
[333961453,1722649859903,-500.0,0.00016986,2]
[333961454,1722649859911,-500.0,0.00016986,2]
[333961455,1722649859921,-671.57,0.00016986,2]
[333961456,1722649859930,-500.0,0.00016986,2]
[333961457,1722649859939,-776.24,0.00016986,2]
[333961458,1722649859948,-500.0,0.00016986,2]
[333961459,1722649859957,-500.0,0.00016986,2]
[333961460,1722649859966,-600.62,0.00016986,2]
[333961461,1722649859975,-500.0,0.00016986,2]
[333961462,1722649859985,-500.0,0.00016986,2]
[333961463,1722649859995,-500.0,0.00016986,2]
[333961464,1722649860004,-500.0,0.00016986,2]
[333961465,1722649860013,-500.0,0.00016986,2]
[333961466,1722649860023,-977.68,0.00016986,2]
[333961467,1722649860033,-500.0,0.00016986,2]
[333961468,1722649860043,-500.0,0.00016986,2]
[333961469,1722649860053,-1153.34,0.00016986,2]
[333961470,1722649860063,-521.43,0.00016986,2]
[333961471,1722649860072,-661.44,0.00016986,2]
[333961472,1722649860081,-500.0,0.00016986,2]
[333961473,1722649860091,-500.0,0.00016986,2]
[333961474,1722649860100,-547.63,0.00016986,2]
[333961475,1722649860110,-500.0,0.00016986,2]
[333961476,1722649860120,-988.23,0.00016986,2]
[333961477,1722649860129,-500.0,0.00016986,2]
[333961478,1722649860138,-500.0,0.00016986,2]
[333961479,1722649860147,-652.46,0.00016986,2]
[333961480,1722649860157,-500.0,0.00016986,2]
[333961481,1722649860167,-500.0,0.00016986,2]
[333961482,1722649860176,-1200.13,0.00016986,2]
[333961483,1722649860186,-500.0,0.00016986,2]
[333961484,1722649860195,-500.0,0.00016986,2]
[333961485,1722649860206,-576.36,0.00016986,2]
[333961486,1722649860215,-752.54,0.00016986,2]
[333961487,1722649860225,-604.08,0.00016986,2]
[333961488,1722649860235,-500.0,0.00016986,2]
[333961489,1722649860245,-500.0,0.00016986,2]
[333961490,1722649860255,-500.0,0.00016986,2]
[333961491,1722649860266,-582.22,0.00016986,2]
[333961492,1722649860276,-679.96,0.00016986,2]
[333961493,1722649860285,-500.0,0.00016986,2]
[333961494,1722649860294,-606.57,0.00016986,2]
[333961495,1722649860304,-1327.37,0.00016986,2]
[333961496,1722649860313,-625.77,0.00016986,2]
[333961497,1722649860323,-500.0,0.00016986,2]
[333961498,1722649860333,-975.76,0.00016986,2]
[333961499,1722649860342,-957.48,0.00016986,2]
[333961500,1722649860352,-754.29,0.00016986,2]
[333961501,1722649860363,-564.48,0.00016986,2]
[333961502,1722649860373,-500.0,0.00016986,2]
[333961503,1722649860383,-500.0,0.00016986,2]
[333961504,1722649860394,-507.44,0.00016986,2]
[333961505,1722649860404,-515.06,0.00016986,2]
[333961506,1722649860413,-500.0,0.00016986,2]
[333961507,1722649860422,-500.0,0.00016986,2]
[333961508,1722649860433,-608.81,0.00016986,2]
[333961509,1722649860442,-500.0,0.00016986,2]
[333961510,1722649860452,-500.0,0.00016986,2]
[333961511,1722649860463,-500.0,0.00016986,2]
[333961512,1722649860472,-1019.91,0.00016986,2]
[333961513,1722649860481,-874.04,0.00016986,2]
[333961514,1722649860491,-1155.96,0.00016986,2]
[333961515,1722649860501,-500.0,0.00016986,2]
[333961516,1722649860510,-500.0,0.00016986,2]
[333961517,1722649860520,-933.57,0.00016986,2]
[333961518,1722649860529,-857.45,0.00016986,2]
[333961519,1722649860538,-500.0,0.00016986,2]
[333961520,1722649860548,-1096.96,0.00016986,2]
[333961521,1722649860557,-609.25,0.00016986,2]
[333961522,1722649860566,-699.35,0.00016986,2]
[333961523,1722649860575,-500.0,0.00016986,2]
[333961524,1722649860585,-568.48,0.00016986,2]
[333961525,1722649860594,-500.0,0.00016986,2]
[333961526,1722649860603,-575.56,0.00016986,2]
[333961527,1722649860614,-151.270683,0.00016986,2]
[333961528,1722649860623,-715.1,0.00016986,2]
[333961529,1722649860632,-151.0,0.00016986,2]
[333961530,1722649860642,-151.0,0.00016986,2]
[333961531,1722649860651,-735.11,0.00016986,2]
[333961532,1722649860660,-318.42643688,0.00016986,2]
[333961533,1722649860669,-156.03774054,0.00016986,2]
[333961534,1722649860679,-990.8,0.00016986,2]
[333961535,1722649860687,-251.42317223,0.00016986,2]
[333961536,1722649860696,-500.0,0.00016986,2]
[333961537,1722649860707,-551.0,0.00016986,2]
[333961538,1722649860716,-500.0,0.00016986,2]
[333961539,1722649860725,-1217.14,0.00016986,2]
[333961540,1722649860734,-1351.15,0.00016986,2]
[333961541,1722649860743,-563.32,0.00016986,2]
[333961542,1722649860752,-500.0,0.00016986,2]
[333961543,1722649860761,-500.0,0.00016986,2]
[333961544,1722649860770,-582.17,0.00016986,2]
[333961545,1722649860779,-500.0,0.00016986,2]
[333961546,1722649860788,-379.42269368,0.00016986,2]
[333961547,1722649860798,-500.0,0.00016986,2]
[333961548,1722649860806,-500.0,0.00016986,2]
[333961549,1722649860816,-500.0,0.00016986,2]
[333961550,1722649860825,-1436.37,0.00016986,2]
[333961551,1722649860834,-500.0,0.00016986,2]
[333961552,1722649860843,-834.82,0.00016986,2]
[333961553,1722649860852,-500.0,0.00016986,2]
[333961554,1722649860864,-500.0,0.00016986,2]
[333961555,1722649860873,-184.18698213,0.00016986,2]
[333961556,1722649860882,-689.94,0.00016986,2]
[333961557,1722649860891,-500.0,0.00016986,2]
[333961558,1722649860900,-500.0,0.00016986,2]
[333961559,1722649860910,-511.91,0.00016986,2]
[333961560,1722649860919,-500.0,0.00016986,2]
[333961561,1722649860929,-500.0,0.00016986,2]
[333961562,1722649860938,-989.44,0.00016986,2]
[333961563,1722649860947,-500.0,0.00016986,2]
[333961564,1722649860956,-1740.01,0.00016986,2]
[333961565,1722649860965,-500.0,0.00016986,2]
[333961566,1722649860974,-500.0,0.00016986,2]
[333961567,1722649860983,-500.0,0.00016986,2]
[333961568,1722649860992,-500.0,0.00016986,2]
[333961569,1722649861001,-500.0,0.00016986,2]
[333961570,1722649861010,-772.4,0.00016986,2]
[333961571,1722649861020,-500.0,0.00016986,2]
[333961572,1722649861029,-1666.43,0.00016986,2]
[333961573,1722649861040,-1110.41,0.00016986,2]
[333961574,1722649861051,-1146.98,0.00016986,2]
[333961575,1722649861060,-500.0,0.00016986,2]
[333961576,1722649861070,-502.62091721,0.00016986,2]
[333961577,1722649861079,-500.0,0.00016986,2]
[333961578,1722649861089,-500.0,0.00016986,2]
[333961579,1722649861098,-767.6,0.00016986,2]
[333961580,1722649861107,-151.0,0.00016986,2]
[333961581,1722649861123,-1061.97,0.00016986,2]
[333961582,1722649861132,-609.26,0.00016986,2]
[333961583,1722649861141,-2176.12,0.00016986,2]
[333961584,1722649861150,-500.0,0.00016986,2]
[333961585,1722649861159,-500.0,0.00016986,2]
[333961586,1722649861168,-761.65,0.00016986,2]
[333961587,1722649861177,-500.0,0.00016986,2]
[333961588,1722649861187,-1436.3,0.00016986,2]
[333961589,1722649861196,-256.85014383,0.00016986,2]
[333961590,1722649861205,-500.0,0.00016986,2]
[333961591,1722649861214,-542.56,0.00016986,2]
[333961592,1722649861223,-1767.06,0.00016986,2]
[333961593,1722649861233,-500.0,0.00016986,2]
[333961594,1722649861242,-2131.17,0.00016986,2]
[333961595,1722649861251,-774.23,0.00016986,2]
[333961596,1722649861260,-548.1,0.00016986,2]
[333961597,1722649861270,-336.04774445,0.00016986,2]
[333961598,1722649861279,-570.01,0.00016986,2]
[333961599,1722649861288,-500.0,0.00016986,2]
[333961600,1722649861297,-948.07,0.00016986,2]
[333961601,1722649861306,-765.48,0.00016986,2]
[333961602,1722649861315,-594.04,0.00016986,2]
[333961603,1722649861324,-500.0,0.00016986,2]
[333961604,1722649861333,-595.35,0.00016986,2]
[333961605,1722649861343,-500.0,0.00016986,2]
[333961606,1722649861352,-850.52,0.00016986,2]
[333961607,1722649861362,-868.11,0.00016986,2]
[333961608,1722649861371,-925.64,0.00016986,2]
[333961609,1722649861380,-500.0,0.00016986,2]
[333961610,1722649861393,-697.58,0.00016986,2]
[333961611,1722649861402,-500.0,0.00016986,2]
[333961612,1722649861411,-672.84,0.00016986,2]
[333961613,1722649861421,-572.83,0.00016986,2]
[333961614,1722649861432,-1538.94,0.00016986,2]
[333961615,1722649861441,-1502.0,0.00016986,2]
[333961616,1722649861451,-1727.54,0.00016986,2]
[333961617,1722649861464,-500.0,0.00016986,2]
[333961618,1722649861473,-500.0,0.00016986,2]
[333961619,1722649861482,-1011.16,0.00016986,2]
[333961620,1722649861491,-500.0,0.00016986,2]
[333961621,1722649861500,-560.79,0.00016986,2]
[333961622,1722649861509,-598.74,0.00016986,2]
[333961623,1722649861519,-817.93,0.00016986,2]
[333961624,1722649861527,-554.11,0.00016986,2]
[333961625,1722649861536,-500.0,0.00016986,2]
[333961626,1722649861546,-500.0,0.00016986,2]
[333961627,1722649861555,-500.0,0.00016986,2]
[333961628,1722649861564,-151.0,0.00016986,2]
[333961629,1722649861574,-500.0,0.00016986,2]
[333961630,1722649861583,-1173.09,0.00016986,2]
[333961631,1722649861593,-1792.46,0.00016986,2]
[333961632,1722649861602,-1162.14,0.00016986,2]
[333961633,1722649861612,-777.33,0.00016986,2]
[333961634,1722649861621,-563.21,0.00016986,2]
[333961635,1722649861631,-1353.34,0.00016986,2]
[333961636,1722649861640,-876.7,0.00016986,2]
[333961637,1722649861649,-1615.31,0.00016986,2]
[333961638,1722649861659,-500.0,0.00016986,2]
[333961639,1722649861667,-2034.6,0.00016986,2]
[333961640,1722649861677,-500.0,0.00016986,2]
[333961641,1722649861686,-720.8,0.00016986,2]
[333961642,1722649861695,-500.0,0.00016986,2]
[333961643,1722649861704,-1125.24,0.00016986,2]
[333961644,1722649861713,-500.0,0.00016986,2]
[333961645,1722649861722,-500.0,0.00016986,2]
[333961646,1722649861731,-1443.69,0.00016986,2]
[333961647,1722649861740,-500.0,0.00016986,2]
[333961648,1722649861749,-151.165256,0.00016986,2]
[333961649,1722649861758,-500.0,0.00016986,2]
[333961650,1722649861768,-1301.45,0.00016986,2]
[333961651,1722649861777,-500.0,0.00016986,2]
[333961652,1722649861787,-151.0,0.00016986,2]
[333961653,1722649861797,-500.0,0.00016986,2]
[333961654,1722649861807,-500.0,0.00016986,2]
[333961655,1722649861817,-1425.99,0.00016986,2]
[333961656,1722649861826,-500.0,0.00016986,2]
[333961657,1722649861835,-500.0,0.00016986,2]
[333961658,1722649861844,-922.51,0.00016986,2]
[333961659,1722649861853,-500.0,0.00016986,2]
[333961660,1722649861866,-500.0,0.00016986,2]
[333961661,1722649861875,-1615.09,0.00016986,2]
[333961662,1722649861885,-500.0,0.00016986,2]
[333961663,1722649861894,-804.03,0.00016986,2]
[333961664,1722649861903,-500.0,0.00016986,2]
[333961665,1722649861912,-1365.44,0.00016986,2]
[333961666,1722649861921,-945.69,0.00016986,2]
[333961667,1722649861931,-1624.54,0.00016986,2]
[333961668,1722649861940,-547.6,0.00016986,2]
[333961669,1722649861950,-1282.03,0.00016986,2]
[333961670,1722649861959,-823.17,0.00016986,2]
[333961671,1722649861969,-500.0,0.00016986,2]
[333961672,1722649861978,-1805.67,0.00016986,2]
[333961673,1722649861987,-1477.03,0.00016986,2]
[333961674,1722649861997,-500.0,0.00016986,2]
[333961675,1722649862165,-861.7,0.00016986,2]
[333961676,1722649862194,-500.0,0.00016986,2]
[333961677,1722649862205,-151.0,0.00016986,2]
[333961678,1722649862215,-500.0,0.00016986,2]
[333961679,1722649862224,-631.99,0.00016986,2]
[333961680,1722649862234,-500.0,0.00016986,2]
[333961681,1722649862244,-2079.13,0.00016986,2]
[333961682,1722649862254,-1144.22,0.00016986,2]
[333961683,1722649862265,-151.0,0.00016986,2]
[333961684,1722649862274,-1035.0,0.00016986,2]
[333961685,1722649862284,-829.15,0.00016986,2]
[333961686,1722649862295,-599.95,0.00016986,2]
[333961687,1722649862306,-151.0,0.00016986,2]
[333961688,1722649862317,-500.0,0.00016986,2]
[333961689,1722649862328,-1139.4,0.00016986,2]
[333961690,1722649862339,-500.0,0.00016986,2]
[333961691,1722649862350,-1328.68,0.00016986,2]
[333961692,1722649862367,-500.0,0.00016986,2]
[333961693,1722649862379,-535.46,0.00016986,2]
[333961694,1722649862394,-651.47,0.00016986,2]
[333961695,1722649862405,-1142.89,0.00016986,2]
[333961696,1722649862416,-978.12,0.00016986,2]
[333961697,1722649862427,-1379.52,0.00016986,2]
[333961698,1722649862437,-560.9,0.00016986,2]
[333961699,1722649862449,-779.05,0.00016986,2]
[333961700,1722649862459,-1074.93,0.00016986,2]
[333961701,1722649862472,-1786.72,0.00016986,2]
[333961702,1722649862483,-1031.07,0.00016986,2]
[333961703,1722649862494,-500.0,0.00016986,2]
[333961704,1722649862504,-578.01,0.00016986,2]
[333961705,1722649862514,-151.0,0.00016986,2]
[333961706,1722649862524,-500.0,0.00016986,2]
[333961707,1722649862535,-500.0,0.00016986,2]
[333961708,1722649862545,-1232.36,0.00016986,2]
[333961709,1722649862555,-500.0,0.00016986,2]
[333961710,1722649862565,-500.0,0.00016986,2]
[333961711,1722649862575,-704.79,0.00016986,2]
[333961712,1722649862585,-500.0,0.00016986,2]
[333961713,1722649862595,-1180.59,0.00016986,2]
[333961714,1722649862605,-500.0,0.00016986,2]
[333961715,1722649862623,-500.0,0.00016986,2]
[333961716,1722649862633,-1263.38,0.00016986,2]
[333961717,1722649862644,-500.0,0.00016986,2]
[333961718,1722649862654,-246.95105729,0.00016986,2]
[333961719,1722649862664,-1163.81,0.00016986,2]
[333961720,1722649862674,-1728.68,0.00016986,2]
[333961721,1722649862684,-500.0,0.00016986,2]
[333961722,1722649862694,-500.0,0.00016986,2]
[333961723,1722649862705,-596.41,0.00016986,2]
[333961724,1722649862715,-500.0,0.00016986,2]
[333961725,1722649862725,-1473.97,0.00016986,2]
[333961726,1722649862737,-562.63,0.00016986,2]
[333961727,1722649862747,-1324.45,0.00016986,2]
[333961728,1722649862756,-500.0,0.00016986,2]
[333961729,1722649862766,-632.31,0.00016986,2]
[333961730,1722649862775,-500.0,0.00016986,2]
[333961731,1722649862785,-500.0,0.00016986,2]
[333961732,1722649862795,-500.0,0.00016986,2]
[333961733,1722649862805,-500.0,0.00016986,2]
[333961734,1722649862814,-500.0,0.00016986,2]
[333961735,1722649862823,-1348.74,0.00016986,2]
[333961736,1722649862833,-1317.24,0.00016986,2]
[333961737,1722649862843,-500.0,0.00016986,2]
[333961738,1722649862853,-539.18,0.00016986,2]
[333961739,1722649862868,-1416.04,0.00016986,2]
[333961740,1722649862879,-500.0,0.00016986,2]
[333961741,1722649862889,-943.42,0.00016986,2]
[333961742,1722649862899,-1511.0,0.00016986,2]
[333961743,1722649862910,-500.0,0.00016986,2]
[333961744,1722649862920,-1083.34,0.00016986,2]
[333961745,1722649862930,-500.0,0.00016986,2]
[333961746,1722649862941,-806.16,0.00016986,2]
[333961747,1722649862951,-834.55,0.00016986,2]
[333961748,1722649862962,-670.02,0.00016986,2]
[333961749,1722649862972,-652.6,0.00016986,2]
[333961750,1722649862982,-500.0,0.00016986,2]
[333961751,1722649862992,-741.61,0.00016986,2]
[333961752,1722649863001,-500.0,0.00016986,2]
[333961753,1722649863011,-1148.71,0.00016986,2]
[333961754,1722649863024,-1145.93,0.00016986,2]
[333961755,1722649863033,-645.35,0.00016986,2]
[333961756,1722649863043,-500.0,0.00016986,2]
[333961757,1722649863053,-500.0,0.00016986,2]
[333961758,1722649863063,-500.0,0.00016986,2]
[333961759,1722649863072,-500.0,0.00016986,2]
[333961760,1722649863082,-500.0,0.00016986,2]
[333961761,1722649863092,-500.0,0.00016986,2]
[333961762,1722649863103,-285.907064,0.00016986,2]
[333961763,1722649863120,-1590.25,0.00016986,2]
[333961764,1722649863130,-500.0,0.00016986,2]
[333961765,1722649863141,-500.0,0.00016986,2]
[333961766,1722649863151,-500.0,0.00016986,2]
[333961767,1722649863161,-1319.52,0.00016986,2]
[333961768,1722649863172,-719.31,0.00016986,2]
[333961769,1722649863183,-151.0,0.00016986,2]
[333961770,1722649863194,-2194.37,0.00016986,2]
[333961771,1722649863205,-193.929653,0.00016986,2]
[333961772,1722649863216,-188.079485,0.00016986,2]
[333961773,1722649863226,-679.01,0.00016986,2]
[333961774,1722649863237,-1427.91,0.00016986,2]
[333961775,1722649863247,-691.5,0.00016986,2]
[333961776,1722649863257,-308.09221663,0.00016986,2]
[333961777,1722649863267,-833.22,0.00016986,2]
[333961778,1722649863278,-794.89,0.00016986,2]
[333961779,1722649863289,-500.0,0.00016986,2]
[333961780,1722649863300,-500.0,0.00016986,2]
[333961781,1722649863311,-1202.27,0.00016986,2]
[333961782,1722649863322,-676.8,0.00016986,2]
[333961783,1722649863332,-1091.7,0.00016986,2]
[333961784,1722649863343,-1615.47,0.00016986,2]
[333961785,1722649863354,-500.0,0.00016986,2]
[333961786,1722649863369,-500.0,0.00016986,2]
[333961787,1722649863380,-569.47,0.00016986,2]
[333961788,1722649863394,-500.0,0.00016986,2]
[333961789,1722649863405,-500.0,0.00016986,2]
[333961790,1722649863415,-592.14,0.00016986,2]
[333961791,1722649863427,-1407.68,0.00016986,2]
[333961792,1722649863437,-960.09,0.00016986,2]
[333961793,1722649863448,-500.0,0.00016986,2]
[333961794,1722649863460,-500.0,0.00016986,2]
[333961795,1722649863471,-821.01,0.00016986,2]
[333961796,1722649863482,-703.43,0.00016986,2]
[333961797,1722649863494,-1255.87,0.00016986,2]
[333961798,1722649863504,-570.18,0.00016986,2]
[333961799,1722649863514,-735.82,0.00016986,2]
[333961800,1722649863526,-500.0,0.00016986,2]
[333961801,1722649863536,-1127.22,0.00016986,2]
[333961802,1722649863547,-1876.53,0.00016986,2]
[333961803,1722649863560,-500.0,0.00016986,2]
[333961804,1722649863571,-631.44,0.00016986,2]
[333961805,1722649863583,-1932.07,0.00016986,2]
[333961806,1722649863593,-500.0,0.00016986,2]
[333961807,1722649863604,-500.0,0.00016986,2]
[333961808,1722649863619,-611.01,0.00016986,2]
[333961809,1722649863629,-500.0,0.00016986,2]
[333961810,1722649863640,-500.0,0.00016986,2]
[333961811,1722649863650,-708.45,0.00016986,2]
[333961812,1722649863660,-775.2,0.00016986,2]
[333961813,1722649863670,-571.61,0.00016986,2]
[333961814,1722649863681,-500.0,0.00016986,2]
[333961815,1722649863690,-500.0,0.00016986,2]
[333961816,1722649863700,-1660.15,0.00016986,2]
[333961817,1722649863710,-182.47043029,0.00016986,2]
[333961818,1722649863720,-500.0,0.00016986,2]
[333961819,1722649863731,-500.0,0.00016986,2]
[333961820,1722649863741,-500.0,0.00016986,2]
[333961821,1722649863751,-768.4,0.00016986,2]
[333961822,1722649863761,-151.0,0.00016986,2]
[333961823,1722649863771,-850.46,0.00016986,2]
[333961824,1722649863782,-151.36026,0.00016986,2]
[333961825,1722649863792,-565.92,0.00016986,2]
[333961826,1722649863802,-176.33082937,0.00016986,2]
[333961827,1722649863812,-500.0,0.00016986,2]
[333961828,1722649863822,-500.0,0.00016986,2]
[333961829,1722649863832,-1022.86,0.00016986,2]
[333961830,1722649863846,-804.73,0.00016986,2]
[333961831,1722649863856,-500.0,0.00016986,2]
[333961832,1722649863874,-1009.0,0.00016986,2]
[333961833,1722649863886,-882.33,0.00016986,2]
[333961834,1722649863896,-683.81,0.00016986,2]
[333961835,1722649863907,-500.0,0.00016986,2]
[333961836,1722649863917,-500.0,0.00016986,2]
[333961837,1722649863927,-886.12,0.00016986,2]
[333961838,1722649863937,-2182.54,0.00016986,2]
[333961839,1722649863948,-500.0,0.00016986,2]
[333961840,1722649863958,-500.0,0.00016986,2]
[333961841,1722649863968,-523.07,0.00016986,2]
[333961842,1722649863982,-657.09,0.00016986,2]
[333961843,1722649863992,-500.0,0.00016986,2]
[333961844,1722649864005,-578.18,0.00016986,2]
[333961845,1722649864015,-500.0,0.00016986,2]
[333961846,1722649864024,-500.0,0.00016986,2]
[333961847,1722649864034,-1162.27,0.00016986,2]
[333961848,1722649864045,-516.27,0.00016986,2]
[333961849,1722649864054,-500.0,0.00016986,2]
[333961850,1722649864064,-500.0,0.00016986,2]